bitfinex-derivatives/quotes_SOLF0:USTF0_20250803
["timestamp","ask_amount","ask_price","bid_price","bid_amount"]
[1754248876610,3.41,161.86,161.84,3.53]
[1754248877118,3.41,161.86,161.81,6.23657522]
[1754248877319,3.41,161.86,161.83,3.53]
[1754248878314,3.41,161.86,161.84,6.1787]
[1754248878821,3.41,161.86,161.83,9.7091]
[1754248880114,3.41,161.87,161.85,3.53]
[1754248880323,3.41,161.87,161.86,3.53]
[1754248880620,3.41,161.87,161.84,6.1786]
[1754248880920,3.41,161.87,161.82,3.53]
[1754248881110,6.1776,161.88,161.82,6.1795]
[1754248881419,3.41,161.89,161.82,3.53]
[1754248882521,6.178,161.87,161.82,9.7094]
[1754248882722,3.41,161.86,161.83,3.53]
[1754248882927,3.41,161.89,161.79,3.53]
[1754248883120,3.41,161.89,161.81,9.76657522]
[1754248883622,3.41,161.89,161.82,3.53]
[1754248884325,3.41,161.85,161.82,9.7096]
[1754248884717,6.1778,161.87,161.82,6.1796]
[1754248884918,3.41,161.86,161.84,3.53]
[1754248885416,3.41,161.86,161.83,3.53]
[1754248885417,3.41,161.85,161.83,3.53]
[1754248886324,3.41,161.89,161.83,3.53]
[1754248886527,3.41,161.89,161.82,6.1796]
[1754248886528,3.41,161.85,161.82,3.53]
[1754248886822,3.41,161.85,161.81,6.23657522]
[1754248887020,3.41,161.85,161.83,9.7092]
[1754248887213,3.41,161.84,161.83,6.1792]
[1754248887722,3.41,161.84,161.83,3.53]
[1754248888522,3.41,161.84,161.83,9.7092]
[1754248889023,109.16469817,161.93,161.83,9.76657522]
[1754248889226,102.25133809,161.93,161.86,6.23657522]
[1754248889424,102.25133809,161.93,161.87,3.53]
[1754248890121,108.42693809,161.93,161.88,6.1771]
[1754248890325,6.23657522,161.96,161.89,3.53]
[1754248891118,3.41,161.95,161.89,3.53]
[1754248891428,3.41,161.93,161.9,3.53]
[1754248891730,3.41,161.96,161.92,3.53]
[1754248892225,3.41,161.96,161.94,3.53]
[1754248892615,6.1736,161.98,161.94,3.53]
[1754248892824,3.41,161.97,161.94,9.7048]
[1754248893020,3.41,162.0,161.95,3.53]
[1754248893423,3.41,162.0,161.96,3.53]
[1754248894131,3.41,162.0,161.93,6.23657522]
[1754248894319,3.41,162.0,161.94,3.53]
[1754248894516,6.1734,161.99,161.94,9.705]
[1754248894718,3.41,162.0,161.93,3.53]
[1754248895125,6.1739,161.98,161.93,9.7051]
[1754248895317,3.41,161.97,161.92,6.23657522]
[1754248895522,3.41,161.97,161.95,3.53]
[1754248895718,3.41,161.96,161.95,3.53]
[1754248895917,3.41,161.96,161.92,12.41237522]
[1754248896124,3.41,161.96,161.94,3.53]
[1754248896520,3.41,161.95,161.92,6.23657522]
[1754248897129,3.41,161.95,161.93,3.53]
[1754248898126,119.43657522,162.02,161.93,3.53]
[1754248898320,3.41,161.97,161.93,6.1755]
[1754248898525,3.41,161.97,161.94,3.53]
[1754248899033,3.41,161.96,161.94,3.53]
[1754248899228,119.43657522,162.02,161.92,12.41237522]
[1754248899534,3.41,161.96,161.93,3.53]
[1754248899722,3.41,161.96,161.94,3.53]
[1754248899926,6.1744,161.96,161.94,3.53]
[1754248900129,3.41,161.95,161.94,3.53]
[1754248901429,3.41,162.01,161.94,3.53]
[1754248902131,6.1738,161.98,161.94,3.53]
[1754248902331,119.43657522,162.02,161.95,3.53]
[1754248902332,3.41,161.97,161.95,3.53]
[1754248902723,6.1742,161.97,161.95,3.53]
[1754248902929,3.41,161.96,161.9,6.23657522]
[1754248903132,3.41,161.96,161.91,3.53]
[1754248903435,3.41,161.96,161.84,10.31778657]
[1754248903436,3.41,161.95,161.9,3.53]
[1754248903933,3.41,161.95,161.89,3.46]
[1754248904835,9.48657522,162.01,161.93,3.46]
[1754248905031,113.7,162.02,161.94,3.46]
[1754248905232,3.25,162.01,161.93,3.46]
[1754248905436,3.25,162.01,161.96,6.1743]
[1754248905627,3.25,162.01,161.97,3.46]
[1754248905830,3.25,162.01,161.98,3.46]
[1754248906140,121.61336008,162.08,161.99,3.46]
[1754248906331,3.25,162.04,161.99,3.46]
[1754248906632,3.25,162.01,161.99,3.46]
[1754248907238,3.25,162.0,161.97,3.46]
[1754248907427,6.23657522,162.05,161.97,3.46]
[1754248907628,3.25,162.01,161.97,3.46]
[1754248908330,3.25,162.05,162.04,3.46]
[1754248909632,3.25,162.04,162.03,3.46]
[1754248909932,3.25,162.04,162.0,6.23657522]
[1754248910141,6.23657522,162.05,161.99,3.46]
[1754248910432,6.91336008,162.13,161.99,3.46]
[1754248910433,6.23657522,162.18,162.05,3.46]
[1754248910642,3.25,162.14,162.1,3.46]
[1754248910832,3.25,162.14,162.07,3.46]
[1754248911133,3.25,162.14,162.08,6.23657522]
[1754248911535,3.25,162.14,162.07,3.46]
[1754248911736,6.1686,162.12,162.07,3.46]
[1754248911930,3.25,162.14,162.07,3.46]
[1754248912436,3.25,162.14,162.08,6.23657522]
[1754248912629,3.25,162.14,162.09,3.46]
[1754248912831,3.25,162.14,162.08,6.23657522]
[1754248913031,115.38,162.15,162.11,3.46]
[1754248913331,3.25,162.12,162.11,3.46]
[1754248913928,3.25,162.12,162.08,6.23657522]
[1754248913929,3.25,162.13,162.09,3.46]
[1754248914133,3.25,162.13,162.11,3.46]
[1754248914328,3.25,162.13,162.12,3.46]
[1754248915536,3.25,162.14,162.13,3.46]
[1754248916133,3.25,162.16,162.13,6.23657522]
[1754248916442,3.25,162.16,162.15,3.46]
[1754248916834,3.25,162.17,162.15,3.46]
[1754248917235,3.25,162.16,162.15,3.46]
[1754248919847,3.25,162.18,162.12,3.46]
[1754248920038,6.1667,162.16,162.12,3.46]
[1754248920238,3.25,162.15,162.14,3.46]
[1754248920741,3.25,162.14,162.11,3.46]
[1754248920941,3.25,162.14,162.1,3.46]
[1754248921141,3.25,162.14,162.11,3.46]
[1754248921339,6.23657522,162.18,162.08,6.23657522]
[1754248921546,6.1686,162.12,162.09,3.46]
[1754248921839,3.25,162.1,162.05,3.46]
[1754248922046,3.25,162.1,162.06,3.46]
[1754248922339,3.25,162.1,162.07,3.46]
[1754248922541,115.44,162.12,162.07,3.46]
[1754248923038,3.25,162.1,162.04,6.23657522]
[1754248923249,3.25,162.1,162.05,3.46]
[1754248923439,115.44,162.12,162.05,3.46]
[1754248923643,6.1693,162.1,162.06,3.46]
[1754248923841,3.25,162.08,162.07,3.46]
[1754248924042,6.23657522,162.16,162.08,3.46]
[1754248924246,3.25,162.12,162.09,3.46]
[1754248924941,3.25,162.12,162.1,3.46]
[1754248925142,3.25,162.12,162.11,3.46]
[1754248927243,3.25,162.17,162.11,3.46]
[1754248927745,3.25,162.16,162.13,3.46]
[1754248927936,3.25,162.16,162.12,12.40457522]
[1754248928142,3.25,162.16,162.15,3.46]
[1754248929447,3.25,162.16,162.12,9.69657522]
[1754248929648,9.4167,162.16,162.12,15.86477522]
[1754248929853,6.1667,162.16,162.13,3.46]
[1754248930049,3.25,162.15,162.13,3.46]
[1754248930253,3.25,162.17,162.15,3.46]
[1754248930448,3.25,162.18,162.15,3.46]
[1754248930648,3.25,162.18,162.14,3.46]
[1754248931352,6.1667,162.17,162.14,3.46]
[1754248931553,3.25,162.16,162.12,3.46]
[1754248931946,3.25,162.16,162.09,6.1693]
[1754248931947,6.1677,162.14,162.09,6.1693]
[1754248932156,121.53657522,162.14,162.09,3.46]
[1754248932351,3.25,162.13,162.09,3.46]
[1754248932646,6.1686,162.12,162.09,3.46]
[1754248932851,3.25,162.1,162.09,3.46]
[1754248933451,3.25,162.11,162.1,3.46]
[1754248934050,115.3,162.14,162.1,3.46]
[1754248934256,3.43,162.13,162.11,3.44]
[1754248934649,3.43,162.13,162.09,3.44]
[1754248934850,3.43,162.15,162.13,6.1678]
[1754248935151,3.43,162.16,162.15,3.44]
[1754248940154,115.28,162.18,162.14,6.1675]
[1754248940355,3.43,162.15,162.14,9.6075]
[1754248940857,3.43,162.17,162.15,9.607]
[1754248941163,3.43,162.16,162.15,9.607]
[1754248945559,3.43,162.17,162.16,9.6065]
[1754248946854,421.05657522,162.21,162.16,3.44]
[1754248947061,3.43,162.24,162.19,3.44]
[1754248947370,6.23657522,162.28,162.19,3.44]
[1754248947562,121.1226,162.27,162.23,6.1638]
[1754248947757,3.43,162.26,162.24,3.44]
[1754248947961,3.43,162.26,162.18,6.23657522]
[1754248948155,9.593,162.26,162.23,3.44]
[1754248948464,3.43,162.24,162.23,3.44]
[1754248950859,3.43,162.24,162.23,9.6041]
[1754248951059,3.43,162.26,162.21,3.44]
[1754248951258,3.43,162.3,162.23,3.44]
[1754248951461,114.84,162.3,162.23,3.44]
[1754248951763,3.43,162.28,162.25,3.44]
[1754248952154,3.43,162.28,162.27,3.44]
[1754248953158,3.43,162.29,162.27,3.44]
[1754248953363,3.43,162.29,162.25,3.44]
[1754248954065,3.43,162.28,162.26,3.44]
[1754248954270,3.43,162.28,162.25,6.1632]
[1754248954469,6.1625,162.27,162.24,3.44]
[1754248954666,6.1625,162.27,162.25,3.44]
[1754248955073,6.1629,162.26,162.25,3.44]
[1754248955271,6.23657522,162.32,162.25,3.44]
[1754248955469,114.9,162.31,162.24,3.44]
[1754248955869,114.88,162.3,162.24,3.44]
[1754248956371,6.1625,162.28,162.24,9.6036]
[1754248956572,3.43,162.27,162.24,6.1636]
[1754248956772,3.43,162.27,162.26,3.44]
[1754248956978,6.1619,162.29,162.26,3.44]
[1754248957276,3.43,162.28,162.26,3.44]
[1754248957570,6.1619,162.29,162.25,6.163]
[1754248957571,6.1618,162.29,162.25,6.163]
[1754248957871,9.5918,162.29,162.26,3.44]
[1754248958467,6.1614,162.3,162.27,3.44]
[1754248958662,3.43,162.29,162.27,3.44]
[1754248959069,6.23657522,162.33,162.27,9.6025]
[1754248959267,114.86,162.32,162.28,3.44]
[1754248959464,114.84,162.33,162.29,3.44]
[1754248959673,3.43,162.32,162.28,3.44]
[1754248959875,3.43,162.32,162.29,3.44]
[1754248960270,3.43,162.32,162.28,3.44]
[1754248960576,3.43,162.32,162.26,3.44]
[1754248960771,3.43,162.27,162.26,3.44]
[1754248962169,6.1619,162.29,162.23,6.23657522]
[1754248962369,3.43,162.28,162.27,3.44]
[1754248962874,6.23657522,162.34,162.28,3.44]
[1754248963074,3.43,162.33,162.28,3.44]
[1754248963478,9.5914,162.31,162.28,3.44]
[1754248963676,3.43,162.31,162.28,3.44]
[1754248963871,3.43,162.31,162.28,6.1622]
[1754248964073,3.43,162.31,162.3,3.25]
[1754248964273,3.33,162.31,162.3,3.25]
[1754248964873,3.33,162.33,162.3,3.25]
[1754248965077,3.33,162.32,162.27,6.23657522]
[1754248965380,414.32,162.39,162.2,6.23657522]
[1754248965381,114.68,162.37,162.3,3.25]
[1754248965579,6.1594,162.36,162.31,6.1607]
[1754248965769,3.33,162.35,162.32,3.25]
[1754248965969,3.33,162.34,162.33,3.25]
[1754248966881,3.33,162.34,162.33,9.4103]
[1754248967275,3.33,162.34,162.33,3.25]
[1754248967780,3.33,162.36,162.33,3.25]
[1754248968177,3.33,162.35,162.33,3.25]
[1754248968375,3.33,162.35,162.34,3.25]
[1754248969776,3.33,162.37,162.34,3.25]
[1754248969973,3.33,162.36,162.35,3.25]
[1754248970479,9.4891,162.36,162.35,3.25]
[1754248971880,414.32,162.39,162.33,3.25]
[1754248972083,3.33,162.36,162.33,3.25]
[1754248972682,3.33,162.36,162.33,6.16]
[1754248972881,3.33,162.36,162.35,3.25]
[1754248975783,3.33,162.38,162.33,6.23657522]
[1754248976087,6.1577,162.4,162.36,3.25]
[1754248976088,3.33,162.39,162.36,3.25]
[1754248976390,3.33,162.39,162.36,6.1588]
[1754248976593,3.33,162.39,162.37,3.25]
[1754248976889,3.33,162.39,162.38,3.25]
[1754248977585,114.86,162.4,162.38,3.25]
[1754248977586,118.19,162.4,162.38,3.25]
[1754248977977,3.33,162.42,162.38,3.25]
[1754248978180,3.33,162.41,162.38,3.25]
[1754248978588,9.4872,162.41,162.38,3.25]
[1754248978784,3.33,162.42,162.38,3.25]
[1754248979189,6.1575,162.41,162.39,3.25]
[1754248979489,3.33,162.4,162.37,6.23657522]
[1754248979890,3.33,162.4,162.38,6.1582]
[1754248980092,3.33,162.4,162.39,3.25]
[1754248980289,3.33,162.4,162.31,3.25]
[1754248980588,3.33,162.36,162.24,3.25]
[1754248980787,3.33,162.36,162.33,3.25]
[1754248980986,6.1595,162.35,162.33,3.25]
[1754248981182,3.33,162.34,162.31,3.25]
[1754248981388,3.33,162.34,162.3,3.25]
[1754248981586,121.33657522,162.38,162.31,3.25]
[1754248981790,3.33,162.37,162.31,3.25]
[1754248982287,3.33,162.33,162.3,6.1613]
[1754248982593,6.16,162.34,162.31,3.25]
[1754248982787,3.33,162.32,162.31,3.25]
[1754248983391,3.33,162.39,162.31,3.25]
[1754248983591,115.24,162.39,162.32,6.23657522]
[1754248983783,3.33,162.38,162.33,3.25]
[1754248984293,3.33,162.38,162.23,431.91736363]
[1754248984294,3.33,162.35,162.27,3.25]
[1754248985190,6.23657522,162.36,162.27,6.1623]
[1754248985191,6.1611,162.31,162.27,6.1623]
[1754248985395,6.23657522,162.36,162.26,6.23657522]
[1754248985396,3.33,162.3,162.28,3.25]
[1754248985593,3.33,162.3,162.29,3.25]
[1754248986390,3.33,162.34,162.29,3.25]
[1754248986590,6.1607,162.32,162.3,3.25]
[1754248986784,3.33,162.31,162.3,3.25]
[1754248987792,9.4907,162.32,162.28,9.412]
[1754248988090,3.33,162.31,162.3,3.25]
[1754248988891,6.23657522,162.35,162.3,3.25]
[1754248989092,3.33,162.34,162.3,3.25]
[1754248989288,3.33,162.34,162.32,6.1604]
[1754248989493,3.33,162.34,162.33,3.25]
[1754248990398,3.33,162.37,162.34,6.1598]
[1754248990694,3.33,162.42,162.36,3.25]
[1754248990899,6.1585,162.38,162.36,3.25]
[1754248991094,6.1585,162.38,162.35,3.25]
[1754248991299,3.33,162.37,162.35,3.25]
[1754248991500,3.33,162.37,162.36,3.25]
[1754248991999,3.33,162.36,162.35,3.25]
[1754248992607,6.1585,162.38,162.32,6.23657522]
[1754248992802,3.33,162.37,162.36,3.25]
[1754248993296,6.1581,162.39,162.36,3.25]
[1754248993601,3.33,162.38,162.37,3.25]
[1754248999105,3.33,162.38,162.36,3.35]
[1754248999805,3.18,162.37,162.36,3.35]
[1754249000004,3.18,162.37,162.34,6.1598]
[1754249000005,3.18,162.37,162.34,3.35]
[1754249000807,3.18,162.37,162.33,6.23657522]
[1754249001007,3.18,162.37,162.35,3.35]
[1754249001307,3.18,162.36,162.35,3.35]
[1754249001501,6.159,162.37,162.33,12.39677522]
[1754249001703,6.159,162.37,162.34,3.35]
[1754249001704,3.18,162.35,162.34,3.35]
[1754249001898,6.1585,162.38,162.34,9.5096]
[1754249002094,3.18,162.38,162.34,3.35]
[1754249002308,3.18,162.4,162.34,3.35]
[1754249002713,6.1581,162.39,162.35,6.1595]
[1754249002903,3.18,162.37,162.36,3.35]
[1754249004304,3.18,162.37,162.34,6.1598]
[1754249004508,3.18,162.37,162.34,3.35]
[1754249004807,6.1583,162.39,162.35,6.1595]
[1754249005008,6.1583,162.39,162.36,3.35]
[1754249005205,3.18,162.37,162.36,3.35]
[1754249005409,114.74,162.41,162.33,6.23657522]
[1754249005609,3.18,162.39,162.37,3.35]
[1754249005811,3.18,162.39,162.35,3.35]
[1754249006011,3.18,162.38,162.37,3.35]
[1754249007617,9.3384,162.38,162.35,6.1594]
[1754249007819,3.18,162.37,162.36,3.35]
[1754249010802,3.18,162.37,162.34,6.1599]
[1754249011003,120.85657522,162.41,162.35,3.35]
[1754249011213,6.1583,162.39,162.36,3.35]
[1754249011408,3.18,162.38,162.36,3.35]
[1754249011904,3.18,162.37,162.36,3.35]
[1754249022218,6.1579,162.4,162.36,6.1591]
[1754249022420,3.18,162.39,162.37,3.35]
[1754249022715,3.18,162.39,162.38,3.35]
[1754249025216,3.18,162.39,162.38,9.5084]
[1754249026528,6.91336008,162.44,162.36,6.23657522]
[1754249026726,3.31,162.43,162.39,3.37]
[1754249027127,3.31,162.43,162.42,3.37]
[1754249027725,3.31,162.43,162.42,9.5269]
[1754249029230,3.31,162.43,162.42,3.37]
[1754249029928,3.31,162.43,162.42,9.5269]
[1754249030135,117.63,162.44,162.43,3.37]
[1754249033234,114.32,162.44,162.43,3.37]
[1754249033933,117.63,162.44,162.43,3.37]
[1754249034541,123.7861,162.44,162.43,3.37]
[1754249036533,114.14,162.45,162.41,3.37]
[1754249036726,117.45,162.45,162.41,3.37]
[1754249037029,117.45,162.45,162.34,5.09666534]
[1754249037030,114.14,162.45,162.43,3.37]
[1754249037533,117.45,162.45,162.43,3.37]
[1754249037828,3.31,162.46,162.44,3.37]
[1754249039342,3.31,162.46,162.45,3.37]
[1754249040132,120.295,162.47,162.45,3.37]
[1754249040343,120.295,162.47,162.46,3.37]
[1754249040724,123.605,162.47,162.46,3.37]
[1754249041130,117.45,162.47,162.37,118.13115157]
[1754249041436,3.31,162.46,162.42,6.23657522]
[1754249041735,6.1558,162.45,162.43,3.37]
[1754249041931,3.31,162.44,162.43,3.37]
[1754249042126,114.14,162.47,162.41,12.39377522]
[1754249042326,6.1559,162.45,162.41,12.39377522]
[1754249042533,3.31,162.44,162.43,3.37]
[1754249045235,3.31,162.45,162.44,3.37]
[1754249045934,3.31,162.44,162.42,3.37]
[1754249046540,6.1562,162.44,162.42,3.37]
[1754249046728,3.31,162.43,162.39,6.23657522]
[1754249047035,3.31,162.42,162.38,3.37]
[1754249047235,3.31,162.42,162.39,3.37]
[1754249047732,3.31,162.41,162.4,3.37]
[1754249047935,113.92,162.44,162.4,3.37]
[1754249048132,3.31,162.42,162.4,3.37]
[1754249048536,3.31,162.42,162.41,3.37]
[1754249049438,3.31,162.42,162.41,9.5273]
[1754249050335,3.31,162.44,162.42,6.1568]
[1754249050735,6.1559,162.45,162.38,6.23657522]
[1754249050935,3.31,162.44,162.42,3.37]
[1754249051136,3.31,162.47,162.42,3.37]
[1754249051340,3.31,162.47,162.43,3.37]
[1754249051635,3.31,162.47,162.44,3.37]
[1754249051934,3.31,162.46,162.44,3.37]
[1754249052140,3.31,162.45,162.44,3.37]
[1754249052339,3.31,162.45,162.44,9.5261]
[1754249052635,3.31,162.49,162.43,3.37]
[1754249052831,3.31,162.48,162.45,6.1558]
[1754249053034,3.31,162.48,162.45,3.37]
[1754249053231,3.31,162.48,162.44,3.37]
[1754249053436,3.31,162.46,162.44,3.37]
[1754249054237,3.34,162.45,162.44,3.37]
[1754249054840,3.34,162.45,162.44,9.5261]
[1754249055141,3.34,162.47,162.43,3.34]
[1754249055637,3.34,162.47,162.45,6.1555]
[1754249055835,3.34,162.47,162.46,3.34]
[1754249056038,9.4938,162.51,162.47,6.1547]
[1754249056241,3.34,162.5,162.48,3.34]
[1754249057931,3.34,162.5,162.45,3.34]
[1754249058236,3.34,162.5,162.43,3.34]
[1754249058441,6.1547,162.48,162.43,9.4962]
[1754249058640,3.34,162.47,162.44,3.34]
[1754249059044,3.34,162.47,162.45,3.34]
[1754249060843,3.34,162.46,162.45,3.34]
[1754249061047,3.34,162.5,162.46,3.34]
[1754249061341,3.34,162.5,162.47,3.34]
[1754249061747,3.34,162.48,162.47,3.34]
[1754249062435,6.1546,162.48,162.44,6.1561]
[1754249062643,3.34,162.47,162.46,3.34]
[1754249062838,9.4954,162.47,162.44,3.34]
[1754249063044,3.34,162.46,162.44,3.34]
[1754249063244,3.34,162.45,162.44,3.34]
[1754249064142,3.34,162.46,162.45,3.34]
[1754249065347,3.34,162.49,162.42,6.23657522]
[1754249065647,3.34,162.49,162.45,3.34]
[1754249065844,3.34,162.47,162.45,3.34]
[1754249066040,3.34,162.47,162.46,3.34]
[1754249071447,3.34,162.47,162.38,5.09666534]
[1754249071651,3.34,162.47,162.39,3.34]
[1754249071854,3.34,162.45,162.39,3.34]
[1754249072052,113.58,162.45,162.39,3.34]
[1754249072345,3.34,162.44,162.39,3.34]
[1754249072846,3.34,162.44,162.37,145.86012157]
[1754249072847,3.34,162.43,162.37,149.20012157]
[1754249073049,3.34,162.43,162.37,145.86012157]
[1754249073246,3.34,162.4,162.38,3.34]
[1754249073549,3.34,162.39,162.38,3.34]
[1754249075446,3.34,162.39,162.37,149.20012157]
[1754249075748,3.34,162.38,162.37,149.20012157]
[1754249075948,3.34,162.38,162.37,27.72897]
[1754249076847,9.4984,162.38,162.37,27.72897]
[1754249077942,3.34,162.38,162.37,27.72897]
[1754249078148,3.34,162.4,162.37,27.72897]
[1754249078350,6.23657522,162.42,162.39,3.34]
[1754249078551,3.34,162.4,162.39,3.34]
[1754249080053,3.34,162.41,162.37,27.72897]
[1754249080248,6.23657522,162.44,162.4,3.34]
[1754249080456,3.34,162.42,162.4,3.34]
[1754249080849,3.34,162.42,162.41,3.34]
[1754249081854,3.34,162.42,162.41,9.4973]
[1754249082356,3.34,162.44,162.42,3.34]
[1754249082547,6.1559,162.45,162.41,6.1573]
[1754249082747,3.34,162.43,162.41,6.1573]
[1754249083353,3.34,162.43,162.42,3.34]
[1754249083950,6.1555,162.46,162.43,3.29]
[1754249084151,3.38,162.45,162.43,3.29]
[1754249084754,3.38,162.45,162.44,3.29]
[1754249088753,6.91336008,162.52,162.44,3.29]
[1754249088957,3.38,162.48,162.44,9.4462]
[1754249089259,113.42,162.49,162.45,3.29]
[1754249089457,113.42,162.49,162.45,9.4457]
[1754249089458,3.38,162.47,162.45,9.4457]
[1754249089757,3.38,162.48,162.46,3.29]
[1754249090349,3.38,162.48,162.47,3.29]
[1754249091360,9.5347,162.48,162.47,3.29]
[1754249091559,3.38,162.49,162.46,3.29]
[1754249091963,3.38,162.49,162.48,3.29]
[1754249094868,3.38,162.5,162.48,3.29]
[1754249095366,113.36,162.51,162.48,9.4446]
[1754249095567,9.5332,162.52,162.48,6.1546]
[1754249095756,9.5332,162.52,162.49,3.29]
[1754249095958,6.1532,162.52,162.49,3.29]
[1754249096161,3.38,162.51,162.49,3.29]
[1754249097462,6.1529,162.53,162.5,3.29]
[1754249097662,6.1529,162.53,162.49,6.1541]
[1754249097968,3.38,162.51,162.49,6.1541]
[1754249098359,3.38,162.51,162.5,3.29]
[1754249100068,3.38,162.5,162.4,5.09509033]
[1754249100269,3.38,162.48,162.4,3.29]
[1754249100563,3.38,162.46,162.4,3.29]
[1754249102065,6.1559,162.45,162.4,3.29]
[1754249102272,3.38,162.43,162.4,3.29]
[1754249102860,9.5359,162.45,162.41,6.157]
[1754249103065,3.38,162.44,162.42,3.29]
[1754249103371,6.23657522,162.49,162.42,3.29]
[1754249103372,116.72,162.48,162.42,3.29]
[1754249103564,3.38,162.47,162.42,3.29]
[1754249103766,6.1551,162.47,162.43,6.1562]
[1754249104071,3.38,162.46,162.41,3.29]
[1754249104766,6.1547,162.48,162.41,3.29]
[1754249104962,3.38,162.47,162.41,3.29]
[1754249105470,3.38,162.44,162.38,3.29]
[1754249105975,6.1572,162.42,162.39,3.29]
[1754249106169,3.38,162.4,162.39,3.29]
[1754249107668,3.38,162.39,162.37,31.01897]
[1754249107865,3.38,162.38,162.37,31.01897]
[1754249108374,3.38,162.38,162.37,37.17777]
[1754249108675,3.38,162.39,162.38,3.29]
[1754249112282,3.38,162.38,162.37,31.01897]
[1754249113178,6.1577,162.4,162.37,31.01897]
[1754249113376,3.38,162.39,162.38,3.29]
[1754249116479,6.1573,162.41,162.37,37.16767]
[1754249116684,9.65657522,162.43,162.37,37.16767]
[1754249116685,3.42,162.4,162.39,3.28]
[1754249116879,3.42,162.4,162.37,31.00897]
[1754249117378,6.23657522,162.44,162.38,3.28]
[1754249117586,3.42,162.43,162.38,3.28]
[1754249117883,3.42,162.4,162.37,27.72897]
[1754249118181,6.23657522,162.44,162.37,27.72897]
[1754249118182,3.42,162.38,162.37,27.72897]
[1754249118576,9.5784,162.38,162.37,27.72897]
[1754249119380,9.5784,162.38,162.37,17.67437]
[1754249119585,3.42,162.35,162.33,3.28]
[1754249120184,6.1593,162.36,162.34,3.28]
[1754249120386,6.1587,162.38,162.34,3.28]
[1754249120885,6.23657522,162.41,162.34,3.28]
[1754249120886,3.42,162.4,162.34,3.28]
[1754249121889,3.42,162.36,162.35,3.28]
[1754249122085,3.42,162.36,162.31,12.39747522]
[1754249122285,3.42,162.36,162.32,3.28]
[1754249122587,3.42,162.36,162.31,12.39747522]
[1754249122786,3.42,162.36,162.3,6.23657522]
[1754249122985,3.42,162.34,162.33,3.28]
[1754249124086,9.5795,162.35,162.33,3.28]
[1754249125084,3.42,162.37,162.33,6.1603]